fUST/lending_fUST_20251110
["ID","MTS","AMOUNT","RATE_DAILY","PERIOD"]
[393494815,1762721446838,-300.0,0.00019229,2]
[393494816,1762721446849,-300.0,0.00019229,2]
[393494817,1762721446858,-300.0,0.00019229,2]
[393494818,1762721446868,-300.0,0.00019229,2]
[393494819,1762721446877,-300.0,0.00019229,2]
[393494820,1762721446887,-300.0,0.00019229,2]
[393494821,1762721446896,-300.0,0.00019229,2]
[393494822,1762721446906,-300.0,0.00019229,2]
[393494823,1762721446920,-300.0,0.00019229,2]
[393494824,1762721446934,-300.0,0.00019229,2]
[393494825,1762721446943,-300.0,0.00019229,2]
[393494826,1762721446953,-300.0,0.00019229,2]
[393494827,1762721446962,-300.0,0.00019229,2]
[393494828,1762721446971,-300.0,0.00019229,2]
[393494829,1762721446981,-300.0,0.00019229,2]
[393494830,1762721446990,-300.0,0.00019229,2]
[393494831,1762721446999,-303.81446046,0.00019249,2]
[393494832,1762721447009,-500.0,0.00019312,2]
[393494833,1762721447018,-1000.0,0.00019321,2]
[393494834,1762721447027,-1000.0,0.00019321,2]
[393494835,1762721447037,-1005.01507485,0.00019321,2]
[393494836,1762721447047,-1000.0,0.00019321,2]
[393494837,1762721447057,-460.00410667,0.00019321,2]
[393494838,1762721447066,-510.08784499,0.00019321,2]
[393494839,1762721447075,-1000.0,0.00019321,2]
[393494840,1762721447084,-1000.0,0.00019321,2]
[393494841,1762721447094,-1000.0,0.00019321,2]
[393494842,1762721447103,-988.81989076,0.00019321,2]
[393494843,1762721447112,-1126.25238273,0.00019321,2]
[393494844,1762721447121,-912.22203687,0.00019321,2]
[393494845,1762721447131,-160.0,0.000194,2]
[393494846,1762721447140,-1000.0,0.00019421,2]
[393494847,1762721447149,-1000.0,0.00019421,2]
[393494848,1762721447159,-647.47854055,0.00019421,2]
[393494849,1762721447168,-999.0,0.00019455,2]
[393494850,1762721447178,-1500.0,0.00019568,2]
[393494851,1762721447188,-1500.0,0.00019568,2]
[393494852,1762721447197,-1500.0,0.00019568,2]
[393494853,1762721447206,-1500.0,0.00019568,2]
[393494854,1762721447216,-1637.95394483,0.00019568,2]
[393494855,1762721447225,-1426.69676005,0.00019568,2]
[393494856,1762721447234,-1382.31082008,0.00019568,2]
[393494857,1762721447243,-1195.62038484,0.00019568,2]
[393494858,1762721447252,-1000.0,0.00019568,2]
[393494859,1762721447262,-1500.0,0.00019568,2]
[393494860,1762721447271,-1500.0,0.00019568,2]
[393494861,1762721447282,-422.67097124,0.00019585,2]
[393494862,1762721447291,-698.53674225,0.00019691,2]
[393494863,1762721447301,-544.46173318,0.00019693,2]
[393494864,1762721447311,-272.07557931,0.00019712,2]
[393494865,1762721447321,-301.94194653,0.00019786,2]
[393494866,1762721447331,-502.02941983,0.00019788,2]
[393494867,1762721447341,-507.42107441,0.00019868,2]
[393494868,1762721447353,-1500.0,0.00019868,2]
[393494869,1762721447362,-1500.0,0.00019868,2]
[393494870,1762721447371,-527.69603334,0.00019868,2]
[393494871,1762721447381,-491.40543003,0.00019868,2]
[393494872,1762721447391,-260.0,0.00019948,2]
[393494873,1762721447402,-1500.0,0.00019968,2]
[393494874,1762721447411,-508.39586916,0.00019968,2]
[393494875,1762721447420,-151.7983564,0.0002,2]
[393494876,1762721447430,-546.86602884,0.0002,2]
[393494877,1762721447440,-1680.0,0.00020056,2]
[393494878,1762721447449,-379.0,0.00020058,2]
[393494879,1762721447458,-420.0,0.00020058,2]
[393494880,1762721447467,-420.0,0.00020058,2]
[393494881,1762721447477,-2000.0,0.00020116,2]
[393494882,1762721447487,-652.89723562,0.00020116,2]
[393494883,1762721447498,-2000.0,0.00020116,2]
[393494884,1762721447508,-2000.0,0.00020116,2]
[393494885,1762721447518,-2000.0,0.00020116,2]
[393494886,1762721447527,-1867.34854389,0.00020116,2]
[393494887,1762721447537,-1680.0,0.00020156,2]
[393494888,1762721447546,-465.259326,0.00020187,2]
[393494889,1762721447555,-177.0,0.00020249,2]
[393494890,1762721447564,-980.03111972,0.00020323,2]
[393494891,1762721447573,-698.53674225,0.00020323,2]
[393494892,1762721447582,-2000.0,0.00020416,2]
[393494893,1762721447591,-503.92218279,0.00020416,2]
[393494894,1762721447600,-250.0,0.0002046,3]
[393494895,1762721447610,-360.0,0.00020496,2]
[393494896,1762721447619,-499.83692336,0.00020516,2]
[393494897,1762721447629,-543.49550375,0.00020561,2]
[393494898,1762721447639,-2500.0,0.00020664,2]
[393494899,1762721447648,-2500.0,0.00020664,2]
[393494900,1762721447658,-2500.0,0.00020664,2]
[393494901,1762721447667,-1163.05349914,0.00020664,2]
[393494902,1762721447676,-972.20627349,0.00020752,2]
[393494903,1762721447686,-9871.76630313,0.00020911,2]
[393494904,1762721447696,-1742.27754617,0.00020951,2]
[393494905,1762721447706,-698.53674225,0.00020956,2]
[393494906,1762721447717,-2500.0,0.00020964,2]
[393494907,1762721447728,-500.0,0.00020973,2]
[393494908,1762721447737,-113121.06616495,0.00020998,2]
[393494909,1762721447755,-7648.68429783,0.00020998,2]
[393494910,1762721448088,-586.36369892,0.00020998,2]
[393494911,1762721581173,10000.01,0.00017518,2]
[393494912,1762721581196,9243.5437162,0.00017518,2]
[393494913,1762721639879,174.411805,0.00017494,2]
[393494914,1762721879518,-187.74472647,0.00018272,2]
[393494915,1762721879540,-187.15038487,0.00018295,2]
[393494916,1762721891495,374.8536954,0.00018192,2]
[393494917,1762721939733,999.0,0.0001737,2]
[393494918,1762721973671,-445.33395063,0.00018271,2]
[393494919,1762721978274,445.33395063,0.00018192,2]
[393494920,1762721978925,-319.58548915,0.00018271,2]
[393494921,1762721980465,-258.02096477,0.00018271,2]
[393494922,1762721982065,-159.3996086,0.00018271,2]
[393494923,1762721983737,-199.32172102,0.00018271,2]
[393494924,1762721986032,-171.12601976,0.00018271,2]
[393494925,1762721989514,-185.04586628,0.00018271,2]
[393494926,1762722000668,1292.49966958,0.00018192,2]
[393494927,1762722001562,-223.97224377,0.00018271,2]
[393494928,1762722005942,-286.22295196,0.00018271,2]
[393494929,1762722007482,-357.50641179,0.00018271,2]
[393494930,1762722023854,867.70160752,0.00018192,2]
[393494940,1762722046078,832.67175704,0.00018192,2]
[393494954,1762722170371,-233.43345067,0.00018194,2]
[393494955,1762722173051,-203.84205397,0.00018194,2]
[393494956,1762722176876,1000.0,0.00017293,2]
[393494958,1762722194512,-2550.80751277,0.00018194,2]
[393494959,1762722194540,-851.65895368,0.00018271,2]
[393494960,1762722194567,-886.0,0.00018271,2]
[393494961,1762722194598,-150.0,0.00018283,2]
[393494962,1762722194821,-1200.0,0.00018292,2]
[393494963,1762722194850,-300.0,0.00018292,2]
[393494964,1762722194879,-369.60076075,0.00018293,2]
[393494965,1762722194906,-568.64231328,0.00018293,2]
[393494966,1762722194933,-500.0,0.00018293,2]
[393494967,1762722194959,-366.28691526,0.00018293,2]
[393494968,1762722194986,-500.0,0.00018293,2]
[393494969,1762722195013,-500.0,0.00018293,2]
[393494970,1762722195042,-500.0,0.00018293,2]
[393494971,1762722195161,-898.14798012,0.00018293,2]
[393494972,1762722195189,-500.0,0.00018293,2]
[393494973,1762722195217,-500.0,0.00018293,2]
[393494974,1762722195246,-500.0,0.00018293,2]
[393494975,1762722195274,-500.0,0.00018293,2]
[393494976,1762722195303,-500.0,0.00018293,2]
[393494977,1762722195331,-500.0,0.00018293,2]
[393494978,1762722195358,-500.0,0.00018293,2]
[393494979,1762722195387,-305.56605964,0.00018293,2]
[393494980,1762722197331,-592.58192048,0.00018293,2]
[393494981,1762722197362,-500.0,0.00018293,2]
[393494982,1762722197391,-500.0,0.00018293,2]
[393494983,1762722197513,-500.0,0.00018293,2]
[393494984,1762722197543,-500.0,0.00018293,2]
[393494985,1762722197571,-500.0,0.00018293,2]
[393494986,1762722197603,-898.14798012,0.00018293,2]
[393494987,1762722197632,-500.0,0.00018293,2]
[393494988,1762722197661,-500.0,0.00018293,2]
[393494989,1762722197929,-500.0,0.00018293,2]
[393494990,1762722197957,-500.0,0.00018293,2]
[393494991,1762722197988,-500.0,0.00018293,2]
[393494992,1762722198018,-500.0,0.00018293,2]
[393494993,1762722198048,-898.14798012,0.00018293,2]
[393494994,1762722198077,-500.0,0.00018293,2]
[393494995,1762722198107,-500.0,0.00018293,2]
[393494996,1762722198135,-500.0,0.00018293,2]
[393494997,1762722198165,-500.0,0.00018293,2]
[393494998,1762722200389,-500.0,0.00018293,2]
[393494999,1762722200417,-500.0,0.00018293,2]
[393495000,1762722200445,-500.0,0.00018293,2]
[393495001,1762722200476,-898.14798012,0.00018293,2]
[393495002,1762722200506,-500.0,0.00018293,2]
[393495003,1762722200540,-500.0,0.00018293,2]
[393495004,1762722200570,-500.0,0.00018293,2]
[393495005,1762722200603,-500.0,0.00018293,2]
[393495006,1762722200633,-500.0,0.00018293,2]
[393495007,1762722200775,-898.14798012,0.00018293,2]
[393495008,1762722200803,-500.0,0.00018293,2]
[393495009,1762722200833,-500.0,0.00018293,2]
[393495010,1762722200863,-500.0,0.00018293,2]
[393495011,1762722200893,-604.78100481,0.00018293,2]
[393495012,1762722200924,-500.0,0.00018293,2]
[393495013,1762722200954,-533.19761231,0.00018293,2]
[393495014,1762722200983,-500.0,0.00018293,2]
[393495015,1762722201012,-29.6088254,0.00018293,2]
[393495016,1762722206495,-868.53915472,0.00018293,2]
[393495017,1762722206527,-500.0,0.00018293,2]
[393495018,1762722206558,-500.0,0.00018293,2]
[393495019,1762722206592,-500.0,0.00018293,2]
[393495020,1762722206623,-500.0,0.00018293,2]
[393495021,1762722206655,-500.0,0.00018293,2]
[393495022,1762722206689,-898.14798012,0.00018293,2]
[393495023,1762722206718,-350.0,0.00018293,2]
[393495024,1762722206748,-266.63573032,0.00018293,2]
[393495025,1762722212725,-233.36426968,0.00018293,2]
[393495026,1762722212756,-500.0,0.00018293,2]
[393495027,1762722212784,-500.0,0.00018293,2]
[393495028,1762722212814,-500.0,0.00018293,2]
[393495029,1762722212843,-898.14798012,0.00018293,2]
[393495030,1762722212872,-500.0,0.00018293,2]
[393495031,1762722212902,-500.0,0.00018293,2]
[393495032,1762722212931,-500.0,0.00018293,2]
[393495033,1762722212960,-500.0,0.00018293,2]
[393495034,1762722212990,-236.9855004,0.00018293,2]
[393495035,1762722225743,1416.43008776,0.00018183,2]
[393495036,1762722360027,-2952.96793638,0.00018192,2]
[393495068,1762722385380,169.5040302,8.819e-05,2]
[393495116,1762722510627,567.77263578,0.00018191,2]
[393495117,1762722539120,2583.84694435,0.0001819,2]
[393495120,1762722570620,772.95051691,0.0001729,2]
[393495121,1762722570641,153.39530399,0.0001729,2]
[393495122,1762722583817,367.64639154,0.00018192,2]
[393495123,1762722592326,4738.53152275,0.00018096,2]
[393495124,1762722606088,3537.54925509,0.00018192,2]
[393495159,1762722631934,-150.0,0.00018197,2]
[393495161,1762722631944,-243.73056095,0.00018197,2]
[393495166,1762722631991,-638.26943905,0.00018197,2]
[393495169,1762722632006,-150.0,0.000182,2]
[393495171,1762722632016,-150.0,0.000182,2]
[393495172,1762722632025,-150.0,0.000182,2]
[393495174,1762722632035,-194.92525178,0.00018289,2]
[393495176,1762722632046,-105.07474822,0.00018289,2]
[393495178,1762722632056,-300.0,0.00018289,2]
[393495180,1762722632065,-300.0,0.00018289,2]
[393495182,1762722632075,-300.0,0.00018289,2]
[393495183,1762722632084,-1200.0,0.00018289,2]
[393495186,1762722632093,-300.0,0.00018289,2]
[393495189,1762722632103,-50000.0,0.0001829,2]
[393495193,1762722632120,-500.0,0.0001829,2]
[393495196,1762722632130,-500.0,0.0001829,2]
[393495200,1762722632144,-500.0,0.0001829,2]
[393495202,1762722632154,-500.0,0.0001829,2]
[393495204,1762722632163,-500.0,0.0001829,2]
[393495205,1762722632172,-500.0,0.0001829,2]
[393495206,1762722632181,-500.0,0.0001829,2]
[393495207,1762722632190,-500.0,0.0001829,2]
[393495209,1762722632199,-500.0,0.0001829,2]
[393495211,1762722632208,-500.0,0.0001829,2]
[393495213,1762722632217,-500.0,0.0001829,2]
[393495215,1762722632227,-500.0,0.0001829,2]
[393495217,1762722632236,-500.0,0.0001829,2]
[393495218,1762722632246,-500.0,0.0001829,2]
[393495219,1762722632255,-500.0,0.0001829,2]
[393495220,1762722632265,-500.0,0.0001829,2]
[393495221,1762722632274,-500.0,0.0001829,2]
[393495222,1762722632284,-500.0,0.0001829,2]
[393495223,1762722632293,-500.0,0.0001829,2]
[393495224,1762722632303,-500.0,0.0001829,2]
[393495225,1762722632312,-500.0,0.0001829,2]
[393495226,1762722632321,-500.0,0.0001829,2]
[393495227,1762722632331,-500.0,0.0001829,2]
[393495228,1762722632340,-500.0,0.0001829,2]
[393495229,1762722632350,-500.0,0.0001829,2]
[393495230,1762722632360,-500.0,0.0001829,2]
[393495231,1762722632369,-500.0,0.0001829,2]
[393495232,1762722632379,-500.0,0.0001829,2]
[393495233,1762722632389,-500.0,0.0001829,2]
[393495234,1762722632399,-450.0,0.0001829,2]
[393495235,1762722632409,-500.0,0.0001829,2]
[393495236,1762722632418,-500.0,0.0001829,2]
[393495237,1762722632427,-500.0,0.0001829,2]
[393495238,1762722632437,-500.0,0.0001829,2]
[393495239,1762722632446,-500.0,0.0001829,2]
[393495240,1762722632455,-500.0,0.0001829,2]
[393495241,1762722632464,-500.0,0.0001829,2]
[393495242,1762722632473,-341.04781005,0.0001829,2]
[393495243,1762722632482,-500.0,0.0001829,2]
[393495244,1762722632491,-500.0,0.0001829,2]
[393495245,1762722632500,-500.0,0.0001829,2]
[393495246,1762722632509,-500.0,0.0001829,2]
[393495247,1762722632518,-500.0,0.0001829,2]
[393495248,1762722632527,-500.0,0.0001829,2]
[393495249,1762722632536,-500.0,0.0001829,2]
[393495250,1762722632545,-500.0,0.0001829,2]
[393495251,1762722632554,-500.0,0.0001829,2]
[393495252,1762722632564,-500.0,0.0001829,2]
[393495253,1762722632572,-500.0,0.0001829,2]
[393495254,1762722632581,-500.0,0.0001829,2]
[393495255,1762722632590,-500.0,0.0001829,2]
[393495256,1762722632599,-500.0,0.0001829,2]
[393495257,1762722632608,-500.0,0.0001829,2]
[393495258,1762722632617,-250.0,0.0001829,2]
[393495259,1762722632626,-253.31976123,0.0001829,2]
[393495260,1762722632640,-500.0,0.0001829,2]
[393495261,1762722632649,-425.5982832,0.0001829,2]
[393495262,1762722632663,-500.0,0.0001829,2]
[393495263,1762722632673,-500.0,0.0001829,2]
[393495264,1762722632681,-500.0,0.0001829,2]
[393495265,1762722632689,-500.0,0.0001829,2]
[393495266,1762722632704,-500.0,0.0001829,2]
[393495267,1762722632718,-500.0,0.0001829,2]
[393495268,1762722632731,-500.0,0.0001829,2]
[393495269,1762722632744,-500.0,0.0001829,2]
[393495270,1762722632756,-600.35256347,0.0001829,2]
[393495271,1762722632768,-500.0,0.0001829,2]
[393495272,1762722632781,-500.0,0.0001829,2]
[393495273,1762722632793,-500.0,0.0001829,2]
[393495274,1762722632804,-500.0,0.0001829,2]
[393495275,1762722632814,-500.0,0.0001829,2]
[393495276,1762722632827,-500.0,0.0001829,2]
[393495277,1762722632840,-500.0,0.0001829,2]
[393495278,1762722632853,-500.0,0.0001829,2]
[393495279,1762722632865,-500.0,0.0001829,2]
[393495280,1762722632878,-500.0,0.0001829,2]
[393495281,1762722632893,-500.0,0.0001829,2]
[393495282,1762722632911,-500.0,0.0001829,2]
[393495283,1762722632924,-500.0,0.0001829,2]
[393495284,1762722632936,-500.0,0.0001829,2]
[393495285,1762722632947,-500.0,0.0001829,2]
[393495286,1762722632959,-5774.77692661,0.0001829,2]
[393495287,1762722632971,-5774.77692661,0.0001829,2]
[393495288,1762722632983,-5774.77692661,0.0001829,2]
[393495289,1762722632997,-5774.77692661,0.0001829,2]
[393495290,1762722633009,-5774.77692661,0.0001829,2]
[393495291,1762722633020,-5774.77692661,0.0001829,2]
[393495292,1762722633032,-5774.77692661,0.0001829,2]
[393495293,1762722633043,-5460.7075492,0.0001829,2]
[393495294,1762722633059,-314.06937741,0.0001829,2]
[393495295,1762722633072,-4187.66977628,0.0001829,2]
[393495300,1762722637955,-258.72053252,0.00018289,2]
[393495301,1762722637966,-563.70226586,0.0001829,2]
[393495302,1762722638104,-636.29773414,0.0001829,2]
[393495303,1762722638119,-8.74754358,0.00018292,2]
[393495304,1762722638131,-142.25245642,0.00018292,2]
[393495305,1762722638142,-151.0,0.00018292,2]
[393495306,1762722638152,-151.7717868,0.00018292,2]
[393495307,1762722638162,-151.0,0.00018292,2]
[393495308,1762722638172,-453.0948707,0.00018292,2]
[393495309,1762722638184,-46.9051293,0.00018292,2]
[393495310,1762722638194,-151.0,0.00018292,2]
[393495311,1762722638204,-2144.0317982,0.00018293,2]
[393495312,1762722638214,-135.81059473,0.00018294,2]
[393495313,1762722638226,-15.18940527,0.00018294,2]
[393495314,1762722638236,-500.0,0.00018294,2]
[393495315,1762722638246,-891.0,0.00018294,2]
[393495316,1762722638256,-500.0,0.00018294,2]
[393495317,1762722638266,-151.0,0.00018294,2]
[393495318,1762722638275,-151.0,0.00018294,2]
[393495319,1762722638285,-0.59434159,0.00018295,2]
[393495320,1762722638295,-500.0,0.00018295,2]
[393495321,1762722638304,-500.0,0.00018295,2]
[393495322,1762722638314,-500.0,0.00018295,2]
[393495323,1762722638324,-500.0,0.00018295,2]
[393495324,1762722638334,-500.0,0.00018295,2]
[393495325,1762722638344,-500.0,0.00018295,2]
[393495326,1762722638354,-500.0,0.00018295,2]
[393495327,1762722638364,-6714.99491985,0.00018301,2]
[393495328,1762722638374,-151.0,0.00018347,2]
[393495329,1762722638384,-500.0,0.00018347,2]
[393495330,1762722638395,-151.0,0.00018347,2]
[393495331,1762722638405,-151.0,0.00018349,2]
[393495332,1762722638415,-500.0,0.00018349,2]
[393495333,1762722638425,-891.0,0.00018349,2]
[393495334,1762722638435,-500.0,0.00018349,2]
[393495335,1762722638444,-151.0,0.00018349,2]
[393495336,1762722638454,-151.0,0.00018349,2]
[393495337,1762722638464,-500.0,0.0001837,2]
[393495338,1762722638475,-214.87024443,0.00018373,2]
[393495339,1762722638485,-582.24090669,0.00018373,2]
[393495340,1762722638495,-500.0,0.00018373,2]
[393495341,1762722638505,-500.0,0.00018373,2]
[393495342,1762722638514,-419.09934698,0.00018373,2]
[393495343,1762722638524,-599.05248367,0.00018373,2]
[393495344,1762722638534,-500.0,0.00018373,2]
[393495345,1762722638544,-500.0,0.00018373,2]
[393495346,1762722638553,-267.67130376,0.00018373,2]
[393495347,1762722638563,-500.0,0.00018373,2]
[393495348,1762722638572,-2544.90368819,0.00018373,2]
[393495349,1762722638585,-802.8000005,0.00018373,2]
[393495350,1762722638596,-7170.88205,0.00018373,2]
[393495359,1762722639960,-4400.15217874,0.00018373,2]
[393495361,1762722640090,-3e-08,0.00018373,2]
[393495364,1762722643608,-150.0,0.000182,2]
[393495365,1762722643618,-39782.62775586,0.00018373,2]
[393495369,1762722646286,-44993.91923021,0.00018373,2]
[393495370,1762722703737,407.42,0.00018005,2]
[393495371,1762722789885,150.0,0.00018,2]
[393495372,1762722801888,150.0,0.00018,2]
[393495373,1762722812472,150.0,0.00018,2]
[393495374,1762722824412,150.0,0.00018,2]
[393495375,1762722964531,195.46752663,0.00018178,2]
[393495376,1762722964555,2065.39854965,0.00018178,2]
[393495377,1762722980278,5000.0,0.00018192,2]
[393495378,1762723036073,832.73319914,0.00018172,2]
[393495379,1762723065387,-150.0,0.00018257,2]
[393495380,1762723065416,-537.13079093,0.0001827,2]
[393495381,1762723065446,-300.0,0.00018271,2]
[393495382,1762723065674,1163.0,0.00018271,2]
[393495383,1762723082632,300.0,0.00018271,2]
[393495384,1762723112378,268.21010462,0.00018271,2]
[393495385,1762723113919,500.0,0.00018271,2]
[393495386,1762723113951,500.0,0.00018271,2]
[393495387,1762723113982,500.0,0.00018271,2]
[393495388,1762723114014,500.0,0.00018271,2]
[393495389,1762723114044,500.0,0.00018271,2]
[393495390,1762723114072,500.0,0.00018271,2]
[393495391,1762723114100,500.0,0.00018271,2]
[393495392,1762723114126,500.0,0.00018271,2]
[393495393,1762723114156,500.0,0.00018271,2]
[393495394,1762723114185,500.0,0.00018271,2]
[393495395,1762723114215,500.0,0.00018271,2]
[393495396,1762723114242,500.0,0.00018271,2]
[393495397,1762723114271,294.53831352,0.00018271,2]
[393495398,1762723114294,205.46168648,0.00018271,2]
[393495399,1762723114322,500.0,0.00018271,2]
[393495400,1762723114350,500.0,0.00018271,2]
[393495401,1762723114378,500.0,0.00018271,2]
[393495402,1762723114406,500.0,0.00018271,2]
[393495403,1762723114433,500.0,0.00018271,2]
[393495404,1762723114460,500.0,0.00018271,2]
[393495405,1762723114490,500.0,0.00018271,2]
[393495406,1762723114518,500.0,0.00018271,2]
[393495407,1762723114545,500.0,0.00018271,2]
[393495408,1762723114574,500.0,0.00018271,2]
[393495409,1762723114602,448.18285735,0.00018271,2]
[393495410,1762723114638,500.0,0.00018271,2]
[393495411,1762723114667,500.0,0.00018271,2]
[393495412,1762723114694,500.0,0.00018271,2]
[393495413,1762723114721,500.0,0.00018271,2]
[393495414,1762723114749,500.0,0.00018271,2]
[393495415,1762723114777,500.0,0.00018271,2]
[393495416,1762723114805,500.0,0.00018271,2]
[393495417,1762723114832,500.0,0.00018271,2]
[393495418,1762723114871,346.36545617,0.00018271,2]
[393495419,1762723114895,153.63454383,0.00018271,2]
[393495420,1762723114929,500.0,0.00018271,2]
[393495421,1762723114957,472.53876592,0.00018271,2]
[393495422,1762723114983,500.0,0.00018271,2]
[393495423,1762723115012,500.0,0.00018271,2]
[393495424,1762723115042,500.0,0.00018271,2]
[393495425,1762723115070,500.0,0.00018271,2]
[393495426,1762723115097,500.0,0.00018271,2]
[393495427,1762723115124,500.0,0.00018271,2]
[393495428,1762723115151,500.0,0.00018271,2]
[393495429,1762723115178,500.0,0.00018271,2]
[393495430,1762723115208,500.0,0.00018271,2]
[393495431,1762723115235,500.0,0.00018271,2]
[393495432,1762723115262,500.0,0.00018271,2]
[393495433,1762723115290,500.0,0.00018271,2]
[393495434,1762723115318,500.0,0.00018271,2]
[393495435,1762723115344,500.0,0.00018271,2]
[393495436,1762723115376,500.0,0.00018271,2]
[393495437,1762723115403,411.23114831,0.00018271,2]
[393495438,1762723115430,500.0,0.00018271,2]
[393495439,1762723115458,462.60554194,0.00018271,2]
[393495440,1762723115481,37.39445806,0.00018271,2]
[393495441,1762723115509,500.0,0.00018271,2]
[393495442,1762723115537,500.0,0.00018271,2]
[393495443,1762723115573,500.0,0.00018271,2]
[393495444,1762723115688,500.0,0.00018271,2]
[393495445,1762723115716,500.0,0.00018271,2]
[393495446,1762723115744,500.0,0.00018271,2]
[393495447,1762723115771,500.0,0.00018271,2]
[393495448,1762723115798,500.0,0.00018271,2]
[393495449,1762723115827,500.0,0.00018271,2]
[393495450,1762723115857,500.0,0.00018271,2]
[393495451,1762723115884,500.0,0.00018271,2]
[393495452,1762723115914,500.0,0.00018271,2]
[393495453,1762723115942,500.0,0.00018271,2]
[393495454,1762723115969,500.0,0.00018271,2]
[393495455,1762723115996,500.0,0.00018271,2]
[393495456,1762723116024,500.0,0.00018271,2]
[393495457,1762723116054,500.0,0.00018271,2]
[393495458,1762723116082,500.0,0.00018271,2]
[393495459,1762723116109,500.0,0.00018271,2]
[393495460,1762723116137,462.61554194,0.00018271,2]
[393495461,1762723132659,609.78758453,0.00018262,2]
[393495462,1762723174815,429.70463276,0.00018171,2]
[393495463,1762723176840,429.70463272,0.00018175,2]
[393495464,1762723178831,429.70463272,0.0001818,2]
[393495465,1762723179766,2222.80709419,0.00018171,2]
[393495466,1762723180817,429.70463272,0.00018184,2]
[393495467,1762723182816,429.70463272,0.00018188,2]
[393495468,1762723207735,179.63,0.00018261,2]
[393495469,1762723207938,179.63,0.00018261,2]
[393495470,1762723251603,-300.0,0.0001827,2]
[393495471,1762723251625,-0.03770749,0.0001827,2]
[393495472,1762723265879,-200.81303965,0.00018269,2]
[393495473,1762723267996,-99.18696035,0.00018269,2]
[393495474,1762723268020,-119.03075329,0.0001827,2]
[393495475,1762723269638,500.84612777,0.00018262,2]
[393495476,1762723271062,-173.67237718,0.0001827,2]
[393495477,1762723272611,-186.33158586,0.0001827,2]
[393495478,1762723274714,-20.96528367,0.0001827,2]
[393495479,1762723274736,-322.17995224,0.0001827,2]
[393495480,1762723276217,-155.50179157,0.0001827,2]
[393495481,1762723278448,-22.31825619,0.0001827,2]
[393495482,1762723278473,-179.87077046,0.0001827,2]
[393495483,1762723287752,2971.6194263,0.00018158,2]
[393495484,1762723288607,-194.71574966,0.0001827,2]
[393495485,1762723290687,-125.41347988,0.0001827,2]
[393495486,1762723290710,-87.95037272,0.0001827,2]
[393495487,1762723292881,1187.16660357,0.00018262,2]
[393495488,1762723292908,286.6068769,0.00018262,2]
[393495489,1762723293005,-185.48865006,0.0001827,2]
[393495490,1762723296497,555.15546608,0.00018173,2]
[393495491,1762723298320,-300.0,0.0001827,2]
[393495492,1762723301096,-180.60251544,0.0001827,2]
[393495493,1762723303743,325.936,0.00017907,2]
[393495494,1762723304489,-162.21421607,0.0001827,2]
[393495495,1762723306123,-272.48776781,0.0001827,2]
[393495496,1762723307667,-423.30145962,0.0001827,2]
[393495497,1762723316141,1737.4584616,0.00018262,2]
[393495498,1762723316919,-354.461975,0.0001827,2]
[393495499,1762723340605,1287.92193016,0.00018262,2]
[393495500,1762723374972,522.165682,0.00013699,2]
[393495502,1762723388586,1568.52169449,0.0001826,2]